fUSD/lending_fUSD_20260422
["ID","MTS","AMOUNT","RATE_DAILY","PERIOD"]
[420969933,1776828642347,-3400.0,0.000109,3]
[420969934,1776828642357,-150.0,0.00010904,2]
[420969935,1776828642366,-1100.93856937,0.00010921,3]
[420969936,1776828642376,-16238.2452103,0.00010922,2]
[420969937,1776828642385,-140935.2506324,0.00010922,2]
[420969938,1776828642395,-150.0,0.00010926,2]
[420969939,1776828642404,-241.42,0.00010932,2]
[420969940,1776828642413,-1000.0,0.00010944,2]
[420969941,1776828642422,-5672.8727541,0.00010945,2]
[420969942,1776828642431,-200.0,0.00010945,2]
[420969943,1776828642440,-151.0,0.00010945,2]
[420969944,1776828642449,-500.0,0.00010945,2]
[420969945,1776828642459,-155.0,0.00010945,3]
[420969946,1776828642468,-309.0,0.00010945,3]
[420969947,1776828642478,-150.0,0.00010947,2]
[420969948,1776828642488,-500.7524424,0.00010959,2]
[420969949,1776828642497,-150.0,0.00010959,2]
[420969950,1776828642506,-150.0,0.00010959,2]
[420969951,1776828642516,-153.032112,0.00010959,2]
[420969952,1776828642525,-3240.0,0.00010959,2]
[420969953,1776828642535,-150.0,0.00010968,2]
[420969954,1776828642544,-255.0,0.00010987,2]
[420969955,1776828642554,-150.0,0.0001099,2]
[420969956,1776828642569,-210.47156301,0.00010999,2]
[420969957,1776828642578,-338.0,0.00011,2]
[420969958,1776828642588,-150.0,0.00011005,2]
[420969959,1776828642598,-150.0,0.00011011,2]
[420969960,1776828642608,-150.0,0.00011032,2]
[420969961,1776828642619,-150.0,0.00011053,2]
[420969962,1776828642629,-200.0,0.00011054,2]
[420969963,1776828642639,-150.0,0.00011075,2]
[420969964,1776828642648,-151.0,0.00011096,2]
[420969965,1776828642658,-150.0,0.00011096,2]
[420969966,1776828642667,-18144.76020868,0.00011099,2]
[420969967,1776828642678,-18144.76020868,0.00011099,2]
[420969968,1776828642688,-18144.76020868,0.00011099,2]
[420969969,1776828642698,-18144.76020868,0.00011099,2]
[420969970,1776828642708,-7253.69563037,0.00011099,2]
[420969971,1776828642718,-7253.69563034,0.00011099,2]
[420969972,1776828642728,-7253.69563034,0.00011099,2]
[420969973,1776828642737,-7253.69563034,0.00011099,2]
[420969974,1776828642747,-7253.69563034,0.00011099,2]
[420969975,1776828642756,-7253.69563034,0.00011099,2]
[420969976,1776828642766,-397.3924806,0.00011099,2]
[420969977,1776828642776,-150.0,0.00011117,2]
[420969978,1776828642786,-1079.31042356,0.00011129,2]
[420969979,1776828642795,-2243.30111532,0.00011131,2]
[420969980,1776828642805,-150.0,0.00011139,2]
[420969981,1776828642815,-590.99765,0.00011154,2]
[420969982,1776828642825,-726.262063,0.00011154,2]
[420969983,1776828642836,-170.16,0.00011158,2]
[420969984,1776828642846,-150.0,0.0001116,2]
[420969985,1776828642856,-151.34081859,0.00011165,2]
[420969986,1776828642866,-2000.0,0.00011177,2]
[420969987,1776828642876,-150.0,0.00011181,2]
[420969988,1776828642885,-155.373,0.00011183,2]
[420969989,1776828642895,-151.0,0.00011185,2]
[420969990,1776828642905,-18144.76020868,0.00011186,2]
[420969991,1776828642915,-1964.68681,0.000112,2]
[420969992,1776828642925,-1964.68681,0.000112,2]
[420969993,1776828642934,-151.0,0.000112,2]
[420969994,1776828642944,-150.0,0.00011202,2]
[420969995,1776828642954,-240.89,0.00011221,2]
[420969996,1776828642964,-2000.0,0.00011224,2]
[420969997,1776828642974,-200.0,0.00011224,2]
[420969999,1776828642984,-150.0,0.00011224,2]
[420970001,1776828642994,-681.283063,0.00011239,2]
[420970002,1776828643004,-899.810651,0.00011239,2]
[420970003,1776828643013,-196.24,0.0001124,2]
[420970004,1776828643022,-754.07,0.0001124,2]
[420970005,1776828643032,-279.39,0.0001124,2]
[420970006,1776828643042,-659.36,0.0001124,2]
[420970007,1776828643052,-1384.46,0.0001124,2]
[420970008,1776828643062,-656.45,0.0001124,2]
[420970009,1776828643071,-150.0,0.00011245,2]
[420970010,1776828643081,-160.0,0.00011248,2]
[420970011,1776828643091,-7253.69563034,0.00011258,2]
[420970012,1776828643102,-150.0,0.00011266,2]
[420970013,1776828643111,-1000.0,0.0001127,2]
[420970014,1776828643121,-1573.77,0.00011281,2]
[420970015,1776828643131,-299.99,0.00011281,2]
[420970016,1776828643140,-9999.99,0.00011281,2]
[420970017,1776828643150,-293.470776,0.00011288,2]
[420970018,1776828643160,-150.00000002,0.00011288,2]
[420970019,1776828643169,-25000.0,0.00011297,2]
[420970020,1776828643184,-25000.0,0.00011306,2]
[420970021,1776828643194,-25000.0,0.00011306,2]
[420970022,1776828643205,-25000.0,0.00011306,2]
[420970023,1776828643216,-200.0,0.00011313,2]
[420970024,1776828643225,-2987.20505055,0.00011313,2]
[420970027,1776828646504,-160.0,0.00010704,2]
[420970028,1776828646514,-460.429522,0.00010704,2]
[420970029,1776828646523,-760.859044,0.00010704,2]
[420970030,1776828646532,-627.858439,0.00011239,2]
[420970031,1776828646542,-1466.95694169,0.00011313,2]
[420970032,1776828646551,-125.64571575,0.00011314,2]
[420970033,1776828646563,-1839.04108425,0.00011314,2]
[420970034,1776828646572,-1964.68681,0.00011314,2]
[420970035,1776828646582,-1964.68681,0.00011314,2]
[420970036,1776828646591,-1964.68681,0.00011314,2]
[420970037,1776828646600,-151.0,0.00011314,2]
[420970038,1776828646609,-300.0,0.00011314,2]
[420970039,1776828646619,-6431.97440205,0.00011315,2]
[420970042,1776828885270,10000.0,8e-05,10]
[420970043,1776828897898,27000.0,0.000165,30]
[420970044,1776828905734,5000.0,8e-05,10]
[420970045,1776828917766,5105.0,8e-05,10]
[420970048,1776829832530,-400.45,9.699e-05,2]
[420970049,1776829832585,-2099.55,9.699e-05,2]
[420970050,1776829832595,-462368.77393843,9.699e-05,2]
[420970051,1776829832606,-31074.31286157,9.699e-05,2]
[420970052,1776829832615,-250.0,9.748e-05,2]
[420970053,1776829832624,-150.0,9.797e-05,2]
[420970054,1776829832633,-500.0,9.798e-05,2]
[420970055,1776829832642,-500.0,9.798e-05,2]
[420970056,1776829832651,-500.0,9.798e-05,2]
[420970057,1776829832660,-500.0,9.798e-05,2]
[420970058,1776829832674,-500.0,9.798e-05,2]
[420970059,1776829832683,-500.0,9.798e-05,2]
[420970060,1776829832692,-500.0,9.798e-05,2]
[420970061,1776829832701,-500.0,9.798e-05,2]
[420970062,1776829832711,-500.0,9.798e-05,2]
[420970063,1776829832720,-500.0,9.798e-05,2]
[420970064,1776829832729,-500.0,9.798e-05,2]
[420970065,1776829832738,-500.0,9.798e-05,2]
[420970066,1776829832747,-500.0,9.798e-05,2]
[420970067,1776829832756,-500.0,9.798e-05,2]
[420970068,1776829832766,-500.0,9.798e-05,2]
[420970069,1776829832775,-500.0,9.798e-05,2]
[420970070,1776829832784,-547.00442703,9.798e-05,2]
[420970071,1776829832793,-500.0,9.798e-05,2]
[420970072,1776829832803,-500.0,9.798e-05,2]
[420970073,1776829832812,-500.0,9.798e-05,2]
[420970074,1776829832820,-500.0,9.798e-05,2]
[420970075,1776829832830,-500.0,9.798e-05,2]
[420970076,1776829832839,-290.10273658,9.798e-05,2]
[420970077,1776829832851,-209.89726342,9.798e-05,2]
[420970078,1776829832860,-500.0,9.798e-05,2]
[420970079,1776829832869,-500.0,9.798e-05,2]
[420970080,1776829832878,-44.52082335,9.798e-05,2]
[420970081,1776829839204,-455.47917665,9.798e-05,2]
[420970082,1776829839213,-427.04018579,9.798e-05,2]
[420970084,1776829840720,-72.95981421,9.798e-05,2]
[420970085,1776829840730,-500.0,9.798e-05,2]
[420970086,1776829840739,-500.0,9.798e-05,2]
[420970087,1776829840748,-500.0,9.798e-05,2]
[420970088,1776829840758,-500.0,9.798e-05,2]
[420970089,1776829840767,-500.0,9.798e-05,2]
[420970090,1776829840776,-500.0,9.798e-05,2]
[420970091,1776829840786,-500.0,9.798e-05,2]
[420970092,1776829840795,-500.0,9.798e-05,2]
[420970093,1776829840804,-500.0,9.798e-05,2]
[420970094,1776829840813,-499.99999999,9.798e-05,2]
[420970095,1776829840823,-165.88745658,9.798e-05,2]
[420970096,1776829840832,-500.0,9.798e-05,2]
[420970097,1776829840842,-391.17663502,9.798e-05,2]
[420970098,1776829840851,-500.0,9.798e-05,2]
[420970099,1776829840861,-500.0,9.798e-05,2]
[420970100,1776829840870,-765.87,9.798e-05,2]
[420970101,1776829840880,-500.0,9.799e-05,2]
[420970102,1776829840889,-168.34600379,9.799e-05,2]
[420970103,1776829840898,-1949.49,9.8e-05,2]
[420970104,1776829840908,-160.0,9.979e-05,2]
[420970105,1776829840917,-1500.0,9.997e-05,2]
[420970106,1776829840927,-1019.8,0.0001,2]
[420970107,1776829840936,-405.28,0.0001,2]
[420970108,1776829840945,-151.0,0.00010004,2]
[420970109,1776829840955,-684.61,0.0001006,2]
[420970110,1776829840965,-765.87,0.00010072,2]
[420970111,1776829840974,-200.0,0.00010178,2]
[420970112,1776829840983,-765.87,0.00010346,2]
[420970113,1776829840992,-12551.16052285,0.00010394,2]
[420970114,1776829841142,-4771.76849692,0.00010394,2]
[420970119,1776829848053,-9611.02637789,0.00010394,2]
[420970120,1776829848063,-1914.23,0.00010428,2]
[420970121,1776829848072,-578.20924308,0.00010531,2]
[420970122,1776829848081,-721.12765535,0.00010531,2]
[420970123,1776829848093,-765.87,0.0001062,2]
[420970124,1776829848103,-250.0,0.00010669,2]
[420970125,1776829848113,-255.0,0.00010777,2]
[420970126,1776829848123,-200.0,0.00010792,2]
[420970127,1776829848133,-150.0,0.000108,2]
[420970128,1776829848142,-150.0,0.000108,2]
[420970129,1776829848152,-150.0,0.000108,2]
[420970130,1776829848162,-150.0,0.000108,2]
[420970131,1776829848171,-150.0,0.000108,2]
[420970132,1776829848181,-2474.0,0.00010806,2]
[420970133,1776829848191,-3891.757,0.00010806,2]
[420970134,1776829848200,-765.87,0.00010894,2]
[420970135,1776829848210,-1500.0,0.000109,3]
[420970136,1776829848219,-894.0,0.00011029,2]
[420970137,1776829848229,-478.67335408,0.00011049,2]
[420970138,1776829848239,-290.30394816,0.00011094,2]
[420970139,1776829848248,-9072.38010434,0.00011099,2]
[420970140,1776829848258,-6886.88326436,0.00011099,2]
[420970157,1776831032396,-150.0,8.729e-05,2]
[420970158,1776831032406,-256.26351018,8.729e-05,2]
[420970159,1776831032416,-150.00000001,8.729e-05,2]
[420970160,1776831032426,-150.0,8.729e-05,2]
[420970161,1776831032436,-150.0,8.867e-05,2]
[420970162,1776831032445,-160.0,8.904e-05,2]
[420970163,1776831032455,-1200.0,8.904e-05,2]
[420970164,1776831032465,-1107.02206612,8.905e-05,2]
[420970165,1776831032477,-492.97793388,8.905e-05,2]
[420970166,1776831032487,-2000.0,8.905e-05,2]
[420970167,1776831032497,-150.0,9.006e-05,2]
[420970168,1776831032506,-150.0,9.144e-05,2]
[420970169,1776831032516,-200.06828555,9.198e-05,2]
[420970170,1776831032526,-150.0,9.283e-05,2]
[420970171,1776831032535,-150.0,9.422e-05,2]
[420970172,1776831032545,-218.0,9.523e-05,2]
[420970173,1776831032555,-150.0,9.56e-05,2]
[420970174,1776831032565,-250.45,9.564e-05,2]
[420970175,1776831032575,-4157.4482,9.598e-05,2]
[420970176,1776831032584,-6884.0367,9.598e-05,2]
[420970177,1776831032594,-2164.2145,9.598e-05,2]
[420970178,1776831032604,-1311.8531,9.598e-05,2]
[420970179,1776831032613,-2500.0,9.598e-05,2]
[420970180,1776831032623,-322.45,9.634e-05,2]
[420970181,1776831032632,-500.0,9.673e-05,2]
[420970182,1776831032642,-151.0,9.696e-05,2]
[420970183,1776831032651,-150.0,9.696e-05,2]
[420970184,1776831032660,-521.57565016,9.697e-05,2]
[420970185,1776831032670,-655.55331028,9.697e-05,2]
[420970186,1776831032681,-293.47077599,9.699e-05,2]
[420970187,1776831032690,-17830.16548782,9.699e-05,2]
[420970189,1776831039882,-966.53511698,9.598e-05,2]
[420970190,1776831040147,-1499033.46488302,9.598e-05,2]
[420970191,1776831040157,-15243.56591218,9.699e-05,2]
[420970192,1776831040167,-1000.0,9.699e-05,2]
[420970193,1776831040177,-202.04,9.714e-05,2]
[420970194,1776831040186,-892.0,9.795e-05,2]
[420970195,1776831040200,-218.38227724,9.798e-05,2]
[420970196,1776831040209,-239.81601289,9.798e-05,2]
[420970197,1776831040219,-1600.0,9.8e-05,3]
[420970198,1776831040228,-3300.0,9.9e-05,3]
[420970199,1776831040238,-750.39,9.923e-05,2]
[420970200,1776831040247,-151.0,9.997e-05,2]
[420970201,1776831040256,-4900.0,0.0001,3]
[420970202,1776831040265,-500.0,0.0001,2]
[420970203,1776831040275,-500.0,0.0001,2]
[420970204,1776831040284,-500.0,0.0001,2]
[420970205,1776831040294,-500.0,0.0001,2]
[420970206,1776831040303,-500.0,0.0001,2]
[420970207,1776831040313,-500.0,0.0001,2]
[420970208,1776831040322,-500.0,0.0001,2]
[420970209,1776831040332,-536.79779044,0.0001,2]
[420970210,1776831040341,-1600.0,0.00010019,2]
[420970211,1776831040350,-2000.0,0.00010019,2]
[420970212,1776831040360,-623.18491143,0.00010073,2]
[420970213,1776831040370,-1332.97,0.00010208,2]
[420970214,1776831040379,-168.04,0.00010293,2]
[420970215,1776831040388,-361.44,0.00010418,2]
[420970216,1776831040398,-114370.7769318,0.00010524,2]
[420970217,1776831040407,-30216.9356665,0.00010524,2]
[420970218,1776831040416,-151.0,0.00010524,2]
[420970219,1776831040426,-151.0,0.00010524,2]
[420970220,1776831040435,-1548.2247097,0.00010524,2]
[420970221,1776831040445,-751.116664,0.00010524,2]
[420970222,1776831040454,-751.116664,0.00010524,2]
[420970223,1776831040464,-751.116664,0.00010524,2]
[420970224,1776831040473,-751.116664,0.00010524,2]
[420970225,1776831040482,-578.20924308,0.00010571,2]
[420970226,1776831040492,-202.68708001,0.00010571,2]
[420970227,1776831040502,-721.12765535,0.00010571,2]
[420970228,1776831040511,-2000.0,0.00010571,2]
[420970229,1776831040520,-2000.0,0.00010571,2]
[420970230,1776831040529,-2000.0,0.00010571,2]
[420970231,1776831040539,-2000.0,0.00010571,2]
[420970232,1776831040548,-2000.0,0.00010571,2]
[420970233,1776831040558,-174.61919141,0.00010571,2]
[420970234,1776831040567,-2000.0,0.00010571,2]
[420970235,1776831040577,-2000.0,0.00010571,2]
[420970236,1776831040589,-2000.0,0.00010571,2]
[420970237,1776831040599,-2000.0,0.00010571,2]
[420970238,1776831040608,-151.27087827,0.00010571,2]
[420970239,1776831040618,-2000.0,0.00010571,2]
[420970240,1776831040627,-924.60058549,0.00010571,2]
[420970241,1776831040637,-751.76609091,0.00010571,2]
[420970242,1776831040646,-209.40437684,0.00010571,2]
[420970243,1776831040655,-155.50258205,0.00010571,2]
[420970244,1776831040665,-166.40488071,0.00010573,2]
[420970245,1776831040674,-500.0,0.00010573,2]
[420970246,1776831040684,-363.33504885,0.00010573,2]
[420970247,1776831040693,-312.67777592,0.00010573,2]
[420970248,1776831040703,-500.0,0.00010573,2]
[420970249,1776831040712,-255.0,0.00010665,2]
[420970250,1776831040721,-10970.15009887,0.0001069,3]
[420970251,1776831040731,-144797.14490584,0.000107,2]
[420970252,1776831040740,-151.0,0.000107,2]
[420970253,1776831040750,-751.116664,0.000107,2]
[420970254,1776831040759,-751.116664,0.000107,2]
[420970255,1776831040769,-751.116664,0.000107,2]
[420970256,1776831040778,-751.116664,0.000107,2]
[420970257,1776831040788,-151.0,0.000107,2]
[420970258,1776831040798,-151.0,0.000107,2]
[420970259,1776831040807,-201.202108,0.000107,2]
[420970260,1776831040817,-201.202108,0.000107,2]
[420970261,1776831040827,-201.202108,0.000107,2]
[420970262,1776831040836,-201.202108,0.000107,2]
[420970263,1776831040846,-1060.324,0.00010806,2]
[420970264,1776831040856,-1349.0,0.00010806,2]
[420970265,1776831040866,-2916.86,0.00010806,2]
[420970266,1776831040875,-1265.0,0.00010806,2]
[420970267,1776831040885,-927.0,0.00010806,2]
[420970268,1776831040894,-6030.0,0.00010806,2]
[420970269,1776831040904,-2474.0,0.00010806,2]
[420970270,1776831040913,-1000.0,0.00010836,2]
[420970271,1776831040922,-151.0,0.00010844,2]
[420970272,1776831040932,-151.0,0.0001085,2]
[420970273,1776831040941,-151.0,0.0001085,2]
[420970274,1776831040951,-151.0,0.0001085,2]
[420970275,1776831040960,-151.0,0.0001085,2]
[420970276,1776831040969,-151.0,0.00010858,2]
[420970277,1776831040979,-151.0,0.00010858,2]
[420970278,1776831040988,-151.0,0.00010858,2]
[420970279,1776831040998,-151.0,0.00010858,2]
[420970280,1776831041008,-151.0,0.00010858,2]
[420970281,1776831041017,-151.0,0.00010858,2]
[420970282,1776831041026,-151.11,0.00010858,2]
[420970283,1776831041035,-151.0,0.00010858,2]
[420970284,1776831041053,-151.0,0.00010858,2]
[420970285,1776831041065,-151.0,0.00010858,2]
[420970286,1776831041075,-168.04,0.0001086,2]
[420970287,1776831041085,-250.0,0.00010885,2]
[420970288,1776831041095,-6600.0,0.000109,3]
[420970289,1776831041105,-500.0,0.00010959,2]
[420970290,1776831041114,-151.0,0.00010959,2]
[420970291,1776831041124,-152.797168,0.00010959,2]
[420970292,1776831041134,-150.0,0.00010959,2]
[420970293,1776831041144,-1888.0,0.00010959,2]
[420970294,1776831041153,-5000.0,0.00010999,2]
[420970295,1776831041163,-1783.26463774,0.00010999,2]
[420970296,1776831041173,-638.0,0.00011052,2]
[420970297,1776831041182,-151.75396877,0.00011098,2]
[420970298,1776831041192,-500.0,0.00011098,2]
[420970299,1776831041202,-319.17909706,0.00011098,2]
[420970300,1776831041211,-590.73429017,0.00011098,2]
[420970301,1776831041221,-411.67112145,0.00011098,2]
[420970302,1776831041230,-627.99253437,0.00011098,2]
[420970303,1776831041240,-7901.36930729,0.00011099,2]
[420970304,1776831041250,-7901.36930724,0.00011099,2]
[420970305,1776831041260,-7901.36930724,0.00011099,2]
[420970306,1776831041270,-7901.36930724,0.00011099,2]
[420970307,1776831041279,-19492.15738426,0.00011099,2]
[420970308,1776831041289,-186.49017234,0.00011099,2]
[420970309,1776831041298,-151.0,0.00011099,2]
[420970310,1776831041309,-151.0,0.00011099,2]
[420970311,1776831041319,-751.116664,0.00011099,2]
[420970312,1776831041328,-751.116664,0.00011099,2]
[420970313,1776831041338,-751.116664,0.00011099,2]
[420970314,1776831041347,-500.0,0.00011099,2]
[420970315,1776831041357,-751.116664,0.00011099,2]
[420970316,1776831041367,-151.0,0.00011099,2]
[420970317,1776831041377,-201.202108,0.00011099,2]
[420970318,1776831041386,-201.202108,0.00011099,2]
[420970319,1776831041395,-201.202108,0.00011099,2]
[420970320,1776831041405,-201.202108,0.00011099,2]
[420970321,1776831041415,-177.0,0.00011099,3]
[420970322,1776831041425,-155.0,0.00011099,3]
[420970323,1776831041434,-160.0,0.00011111,2]
[420970324,1776831041444,-706.276884,0.00011111,2]
[420970325,1776831041454,-1252.553768,0.00011111,2]
[420970326,1776831041463,-181.08010149,0.00011119,2]
[420970327,1776831041473,-217.15233878,0.00011119,2]
[420970328,1776831041482,-342.37859876,0.00011123,2]
[420970329,1776831041492,-1600.0,0.00011132,2]
[420970330,1776831041501,-2000.0,0.00011132,2]
[420970331,1776831041511,-19492.15738426,0.00011133,2]
[420970332,1776831041520,-151.0,0.00011133,2]
[420970333,1776831041530,-151.132656,0.00011133,2]
[420970334,1776831041539,-894.0,0.00011146,2]
[420970335,1776831041549,-20690.59153252,0.00011166,2]
[420970336,1776831041558,-7901.36930724,0.00011178,2]
[420970337,1776831041568,-160.0,0.00011182,2]
[420970338,1776831041578,-297.470519,0.00011182,2]
[420970339,1776831041587,-434.941038,0.00011182,2]
[420970340,1776831041597,-160.0,0.00011182,2]
[420970341,1776831041606,-614.994971,0.00011182,2]
[420970342,1776831041616,-1069.989942,0.00011182,2]
[420970343,1776831041626,-160.0,0.00011182,2]
[420970344,1776831041635,-440.317673,0.00011182,2]
[420970345,1776831041645,-720.635347,0.00011182,2]
[420970346,1776831041655,-160.0,0.00011182,2]
[420970347,1776831041670,-390.058914,0.00011182,2]
[420970348,1776831041680,-620.117829,0.00011182,2]
[420970349,1776831041689,-160.0,0.00011182,2]
[420970350,1776831041699,-771.786227,0.00011182,2]
[420970351,1776831041712,-1383.572454,0.00011182,2]
[420970352,1776831041722,-349.769,0.00011202,2]
[420970353,1776831041733,-5320.656,0.00011202,2]
[420970354,1776831041743,-200.0,0.00011224,2]
[420970355,1776831041752,-2000.0,0.00011225,2]
[420970356,1776831041762,-200.0,0.00011225,2]
[420970357,1776831041772,-805.0,0.00011231,2]
[420970358,1776831041782,-234.7,0.0001124,2]
[420970359,1776831041792,-383.1,0.0001124,2]
[420970360,1776831041802,-188.65,0.0001124,2]
[420970361,1776831041812,-186.4,0.0001124,2]
[420970362,1776831041822,-255.32,0.0001126,2]
[420970363,1776831041831,-1000.0,0.0001127,2]
[420970364,1776831041841,-3481.5279263,0.00011277,2]
[420970365,1776831041850,-163.0,0.00011288,2]
[420970366,1776831041860,-25000.0,0.00011289,2]
[420970367,1776831041870,-25000.0,0.00011297,2]
[420970368,1776831041880,-151.0,0.00011306,2]
[420970369,1776831041889,-25000.0,0.00011306,2]
[420970370,1776831041899,-151.0,0.00011312,2]
[420970371,1776831041909,-155.0,0.00011314,2]
[420970372,1776831041919,-200.0,0.00011314,2]
[420970373,1776831041929,-25000.0,0.00011315,2]
[420970374,1776831041938,-25000.0,0.00011315,2]
[420970375,1776831041949,-13911.93858517,0.00011315,2]
[420970376,1776831041959,-25000.0,0.00011315,2]
[420970377,1776831041969,-240.97464727,0.00011315,2]
[420970378,1776831041979,-151.0,0.00011315,2]
[420970379,1776831041989,-152.578707,0.00011315,2]
[420970380,1776831041999,-1424.98413,0.00011315,2]
[420970381,1776831042011,-751.116664,0.00011315,2]
[420970382,1776831042021,-751.116664,0.00011315,2]
[420970383,1776831042031,-751.116664,0.00011315,2]
[420970384,1776831042041,-25000.0,0.00011315,2]
[420970385,1776831042051,-751.116664,0.00011315,2]
[420970386,1776831042061,-151.0,0.00011315,2]
[420970387,1776831042071,-201.202108,0.00011315,2]
[420970388,1776831042080,-201.202108,0.00011315,2]
[420970389,1776831042090,-201.202108,0.00011315,2]
[420970390,1776831042099,-201.202108,0.00011315,2]
[420970391,1776831042110,-151.0,0.00011315,2]
[420970392,1776831042119,-250.0,0.00011315,2]
[420970393,1776831042129,-7901.36930724,0.00011322,2]
[420970394,1776831042139,-5795.30849712,0.00011337,2]
[420970395,1776831042149,-1783.26463772,0.0001135,2]
[420970396,1776831042159,-244.0,0.00011376,2]
[420970397,1776831042169,-19492.15738426,0.00011388,2]
[420970398,1776831042178,-500.0,0.0001141,2]
[420970399,1776831042188,-500.0,0.0001141,2]
[420970400,1776831042198,-507.0,0.0001141,2]
[420970401,1776831042208,-500.0,0.0001141,2]
[420970402,1776831042218,-500.0,0.0001141,2]
[420970403,1776831042227,-500.0,0.0001141,2]
[420970404,1776831042237,-500.0,0.0001141,2]
[420970405,1776831042246,-500.0,0.0001141,2]
[420970406,1776831042256,-500.0,0.0001141,2]
[420970407,1776831042266,-500.0,0.0001141,2]
[420970408,1776831042276,-500.0,0.0001141,2]
[420970409,1776831042291,-500.0,0.0001141,2]
[420970410,1776831042301,-500.0,0.0001141,2]
[420970411,1776831042311,-500.0,0.0001141,2]
[420970412,1776831042321,-500.0,0.0001141,2]
[420970413,1776831042335,-500.0,0.0001141,2]
[420970414,1776831042345,-500.0,0.0001141,2]
[420970415,1776831042355,-500.0,0.0001141,2]
[420970416,1776831042365,-500.0,0.0001141,2]
[420970417,1776831042374,-500.0,0.0001141,2]
[420970418,1776831042384,-500.0,0.0001141,2]
[420970420,1776831042394,-500.0,0.0001141,2]
[420970422,1776831042404,-500.0,0.0001141,2]
[420970423,1776831042413,-500.0,0.0001141,2]
[420970424,1776831042423,-500.0,0.0001141,2]
[420970426,1776831042432,-500.0,0.0001141,2]
[420970427,1776831042442,-500.0,0.0001141,2]
[420970428,1776831042452,-500.0,0.0001141,2]
[420970429,1776831042461,-500.0,0.0001141,2]
[420970430,1776831042471,-500.0,0.0001141,2]
[420970431,1776831042481,-500.0,0.0001141,2]
[420970433,1776831042490,-500.0,0.0001141,2]
[420970435,1776831042500,-500.0,0.0001141,2]
[420970436,1776831042510,-500.0,0.0001141,2]
[420970437,1776831042531,-500.0,0.0001141,2]
[420970440,1776831042541,-500.0,0.0001141,2]
[420970441,1776831042551,-500.0,0.0001141,2]
[420970442,1776831042562,-500.0,0.0001141,2]
[420970443,1776831042572,-500.0,0.0001141,2]
[420970444,1776831042582,-500.0,0.0001141,2]
[420970445,1776831042592,-500.0,0.0001141,2]
[420970446,1776831042602,-500.0,0.0001141,2]
[420970447,1776831042612,-500.0,0.0001141,2]
[420970448,1776831042622,-500.0,0.0001141,2]
[420970449,1776831042632,-500.0,0.0001141,2]
[420970450,1776831042642,-500.0,0.0001141,2]
[420970451,1776831042651,-500.0,0.0001141,2]
[420970452,1776831042661,-500.0,0.0001141,2]
[420970453,1776831042671,-500.0,0.0001141,2]
[420970454,1776831042681,-500.0,0.0001141,2]
[420970455,1776831042690,-500.0,0.0001141,2]
[420970456,1776831042700,-500.0,0.0001141,2]
[420970457,1776831042709,-500.0,0.0001141,2]
[420970458,1776831042719,-500.0,0.0001141,2]
[420970459,1776831042729,-500.0,0.0001141,2]
[420970460,1776831042738,-500.0,0.0001141,2]
[420970461,1776831042748,-500.0,0.0001141,2]
[420970462,1776831042758,-500.0,0.0001141,2]
[420970463,1776831042767,-500.0,0.0001141,2]
[420970464,1776831042777,-500.0,0.0001141,2]
[420970465,1776831042786,-523.0,0.0001141,2]
[420970466,1776831042796,-500.0,0.0001141,2]
[420970467,1776831042805,-500.0,0.0001141,2]
[420970468,1776831042815,-500.0,0.0001141,2]
[420970469,1776831042826,-500.0,0.0001141,2]